fUST/lending_fUST_20250308
["ID","MTS","AMOUNT","RATE_DAILY","PERIOD"]
[355609417,1741367440691,-931.89328543,0.00049,30]
[355609418,1741367440700,-22512.2263982,0.00049,30]
[355609419,1741367440710,-22512.2263982,0.00049,30]
[355609420,1741367440719,-7408.65218648,0.00049,2]
[355609421,1741367440729,-2107.07564831,0.00049,120]
[355609422,1741367440739,-6000.0,0.00049,120]
[355609423,1741367440749,-240.0,0.000492,120]
[355609424,1741367440761,-646.6929635,0.00049225,23]
[355609425,1741367440770,-800.0,0.00049228,14]
[355609426,1741367440780,-800.0,0.00049234,14]
[355609427,1741367440789,-800.0,0.00049272,14]
[355609428,1741367440799,-3908.16155335,0.00049276,4]
[355609429,1741367440808,-999.0,0.00049282,120]
[355609430,1741367440817,-800.0,0.00049286,14]
[355609431,1741367440827,-800.0,0.00049286,14]
[355609432,1741367440837,-154.34,0.000493,45]
[355609433,1741367440847,-4441.96,0.00049315,120]
[355609434,1741367440856,-4441.96,0.00049315,120]
[355609435,1741367440866,-4441.96,0.00049315,120]
[355609436,1741367440877,-4441.96,0.00049315,120]
[355609437,1741367440888,-4441.96,0.00049315,120]
[355609438,1741367440900,-4441.96,0.00049315,120]
[355609439,1741367440910,-4441.96,0.00049315,120]
[355609440,1741367440920,-4441.96,0.00049315,120]
[355609441,1741367440931,-4441.96,0.00049315,120]
[355609442,1741367440940,-4441.96,0.00049315,120]
[355609443,1741367440951,-4441.96,0.00049315,120]
[355609444,1741367440960,-4441.96,0.00049315,120]
[355609445,1741367440970,-4441.96,0.00049315,120]
[355609446,1741367440981,-4441.96,0.00049315,120]
[355609447,1741367440990,-4441.96,0.00049315,120]
[355609448,1741367441000,-4441.96,0.00049315,120]
[355609449,1741367441012,-4441.96,0.00049315,120]
[355609450,1741367441021,-4441.96,0.00049315,120]
[355609451,1741367441030,-4441.96,0.00049315,120]
[355609452,1741367441040,-4441.96,0.00049315,120]
[355609453,1741367441049,-4441.96,0.00049315,120]
[355609454,1741367441058,-4441.96,0.00049315,120]
[355609455,1741367441068,-4441.96,0.00049315,120]
[355609456,1741367441078,-4441.98580263,0.00049315,120]
[355609457,1741367441089,-500.0,0.00049315,120]
[355609458,1741367441098,-500.0,0.00049315,120]
[355609459,1741367441109,-500.0,0.00049315,120]
[355609460,1741367441118,-500.0,0.00049315,120]
[355609461,1741367441129,-500.0,0.00049315,120]
[355609462,1741367441139,-500.0,0.00049315,120]
[355609463,1741367441151,-500.0,0.00049315,120]
[355609464,1741367441161,-500.0,0.00049315,120]
[355609465,1741367441171,-376.77978971,0.00049315,120]
[355609466,1741367441182,-200.06073036,0.00049315,10]
[355609467,1741367441193,-800.0,0.00049348,30]
[355609468,1741367441205,-800.0,0.00049349,30]
[355609469,1741367441215,-2501.50850462,0.0004935,2]
[355609470,1741367441225,-151.0,0.00049352,2]
[355609471,1741367441234,-1000.0,0.00049362,90]
[355609472,1741367441243,-800.0,0.00049366,30]
[355609473,1741367441253,-19540.8077668,0.00049372,4]
[355609474,1741367441264,-9402.63397407,0.00049376,2]
[355609475,1741367441273,-800.0,0.00049378,30]
[355609476,1741367441283,-1360.889025,0.0004938,21]
[355609477,1741367441293,-3000.0,0.00049382,2]
[355609478,1741367441309,-222000.0,0.00049382,2]
[355609479,1741367441319,-810.70429918,0.00049391,30]
[355609480,1741367441328,-1000.0,0.000494,21]
[355609481,1741367441339,-800.0,0.00049405,30]
[355609482,1741367441348,-1000.0,0.0004942,21]
[355609483,1741367441357,-800.0,0.0004944,30]
[355609484,1741367441367,-1000.0,0.0004944,21]
[355609485,1741367441378,-800.0,0.00049446,30]
[355609486,1741367441387,-1000.0,0.0004946,21]
[355609487,1741367441397,-3908.16155335,0.00049466,4]
[355609488,1741367441406,-416.66666667,0.00049472,10]
[355609489,1741367441416,-150.0,0.00049473,10]
[355609490,1741367441425,-2626.99945201,0.00049476,40]
[355609491,1741367441434,-271.93265232,0.00049476,40]
[355609492,1741367441443,-151.573136,0.00049476,120]
[355609493,1741367441452,-155.577273,0.00049476,120]
[355609494,1741367441462,-151.0,0.00049476,120]
[355609495,1741367441472,-151.0,0.00049476,120]
[355609496,1741367441481,-165.602847,0.00049476,120]
[355609497,1741367441491,-151.0,0.00049476,120]
[355609498,1741367441501,-151.0,0.00049476,120]
[355609499,1741367441514,-151.0,0.00049476,120]
[355609500,1741367441524,-209.041075,0.00049476,120]
[355609501,1741367441533,-154.140623,0.00049476,120]
[355609502,1741367441542,-151.0,0.00049476,120]
[355609503,1741367441552,-151.0,0.00049476,120]
[355609504,1741367441561,-151.0,0.00049476,120]
[355609505,1741367441571,-151.0,0.00049476,120]
[355609506,1741367441580,-151.0,0.00049476,120]
[355609507,1741367441590,-151.0,0.00049476,120]
[355609508,1741367441600,-151.0,0.00049476,120]
[355609509,1741367441610,-206.408683,0.00049476,120]
[355609510,1741367441620,-500.0,0.00049476,120]
[355609511,1741367441629,-500.0,0.00049476,120]
[355609512,1741367441639,-500.0,0.00049476,120]
[355609513,1741367441649,-500.0,0.00049476,120]
[355609514,1741367441659,-500.0,0.00049476,120]
[355609515,1741367441668,-500.0,0.00049476,120]
[355609516,1741367441677,-500.0,0.00049476,120]
[355609517,1741367441687,-500.0,0.00049476,120]
[355609518,1741367441696,-320.13951951,0.00049476,120]
[355609519,1741367441711,-179.86048049,0.00049476,120]
[355609520,1741367441721,-406.62446238,0.00049476,120]
[355609521,1741367441732,-93.37553762,0.00049476,120]
[355609522,1741367441742,-500.0,0.00049476,120]
[355609523,1741367441751,-500.0,0.00049476,120]
[355609524,1741367441763,-500.0,0.00049476,120]
[355609525,1741367441774,-70.65698632,0.00049476,120]
[355609526,1741367441785,-429.34301368,0.00049476,120]
[355609527,1741367441795,-500.0,0.00049476,120]
[355609528,1741367441804,-500.0,0.00049476,120]
[355609529,1741367441813,-500.0,0.00049476,120]
[355609530,1741367441822,-500.0,0.00049476,120]
[355609531,1741367441831,-500.0,0.00049476,120]
[355609532,1741367441841,-500.0,0.00049476,120]
[355609533,1741367441850,-500.0,0.00049476,120]
[355609534,1741367441859,-500.0,0.00049476,120]
[355609535,1741367441869,-500.0,0.00049476,120]
[355609536,1741367441879,-500.0,0.00049476,120]
[355609537,1741367441889,-500.0,0.00049476,120]
[355609538,1741367441898,-500.0,0.00049476,120]
[355609539,1741367441909,-151.0,0.00049476,120]
[355609540,1741367441924,-262.778548,0.00049476,120]
[355609541,1741367441938,-500.0,0.00049476,120]
[355609542,1741367441948,-500.0,0.00049476,120]
[355609543,1741367441958,-500.0,0.00049476,120]
[355609544,1741367441967,-354.87843832,0.00049476,120]
[355609545,1741367442174,-500.0,0.00041367,2]
[355609546,1741367442184,-256.66516057,0.00041367,2]
[355609547,1741367442196,-243.33483943,0.00041367,2]
[355609548,1741367442206,-500.0,0.00041367,2]
[355609549,1741367442215,-500.0,0.00041367,2]
[355609550,1741367442225,-500.0,0.00041367,2]
[355609551,1741367442235,-294.71880591,0.00041367,2]
[355609579,1741367443275,-500.0,0.00040117,2]
[355609580,1741367443286,-205.28119409,0.00041367,2]
[355609581,1741367443297,-500.0,0.00041367,2]
[355609582,1741367443310,-500.0,0.00041367,2]
[355609583,1741367443320,-500.0,0.00041367,2]
[355609584,1741367443329,-500.0,0.00041367,2]
[355609585,1741367443339,-500.0,0.00041367,2]
[355609586,1741367443349,-500.0,0.00041367,2]
[355609587,1741367443359,-193.21452058,0.00041367,2]
[355609588,1741367443368,-500.0,0.00041367,2]
[355609589,1741367443379,-500.0,0.00041367,2]
[355609590,1741367443389,-366.22155009,0.00041367,2]
[355609603,1741367446221,-500.0,0.00038629,30]
[355609604,1741367446231,-133.77844991,0.00041367,2]
[355609606,1741367446242,-500.0,0.00041367,2]
[355609607,1741367446251,-500.0,0.00041367,2]
[355609608,1741367446263,-500.0,0.00041367,2]
[355609609,1741367446273,-500.0,0.00041367,2]
[355609610,1741367446284,-500.0,0.00041367,2]
[355609611,1741367446295,-500.0,0.00041367,2]
[355609612,1741367446306,-500.0,0.00041367,2]
[355609613,1741367446316,-500.0,0.00041367,2]
[355609614,1741367446325,-341.09400807,0.00041367,2]
[355609628,1741368402097,-177.10359169,0.00019022,2]
[355609691,1741368632558,-189.52416985,0.000189,2]
[355609692,1741368632569,-322.89640831,0.00019022,2]
[355609693,1741368632578,-500.0,0.00019022,2]
[355609694,1741368632588,-500.0,0.00019022,2]
[355609695,1741368632598,-800.0,0.00019022,2]
[355609696,1741368632608,-300.0,0.00019999,2]
[355609697,1741368632617,-1738.9029622,0.0002,2]
[355609698,1741368632629,-7540.96603758,0.0002,2]
[355609699,1741368632638,-6929.14818993,0.00022,2]
[355609700,1741368632649,-293.58714176,0.00022,2]
[355609701,1741368632658,-289.40467738,0.000221,2]
[355609702,1741368632670,-189.52416985,0.000239,2]
[355609703,1741368632680,-230.90945408,0.00024,2]
[355609741,1741368638390,-14856.35316274,0.00024,2]
[355609743,1741368638400,-189.52416985,0.000289,2]
[355609745,1741368638410,-500.0,0.00031,10]
[355609747,1741368638419,-500.0,0.00031,10]
[355609749,1741368638428,-612.76317686,0.00031,10]
[355609751,1741368638438,-500.0,0.00031,10]
[355609753,1741368638447,-500.0,0.00031,10]
[355609755,1741368638456,-500.0,0.00031,5]
[355609757,1741368638466,-7795.2996483,0.00032484,2]
[355609759,1741368638475,-500.0,0.00032875,2]
[355609761,1741368638485,-292.49451,0.00033351,2]
[355609763,1741368638498,-5962.25603512,0.00037,5]
[355609765,1741368638507,-153.32,0.00038,31]
[355609766,1741368638517,-171.35,0.00038356,2]
[355609768,1741368638527,-500.0,0.00038356,30]
[355609770,1741368638535,-618.8,0.00038356,30]
[355609771,1741368638545,-500.0,0.00038356,30]
[355609772,1741368638555,-537.23,0.00038356,30]
[355609774,1741368638564,-500.0,0.00038356,30]
[355609776,1741368638573,-500.0,0.00038356,30]
[355609777,1741368638583,-500.0,0.00038356,30]
[355609778,1741368638592,-500.0,0.00038356,30]
[355609779,1741368638602,-640.75,0.00038356,30]
[355609780,1741368638611,-500.0,0.00038356,30]
[355609781,1741368638620,-500.0,0.00038356,30]
[355609782,1741368638630,-509.37661527,0.00038356,30]
[355609783,1741368638639,-500.0,0.00038356,30]
[355609784,1741368638648,-500.0,0.00038356,30]
[355609785,1741368638658,-502.90415019,0.00038356,30]
[355609786,1741368638667,-500.0,0.00038356,30]
[355609787,1741368638677,-500.0,0.00038356,30]
[355609788,1741368638690,-500.0,0.00038356,30]
[355609789,1741368638699,-500.0,0.00038356,30]
[355609790,1741368638709,-501.08,0.00038356,30]
[355609791,1741368638719,-500.0,0.00038356,30]
[355609792,1741368638728,-500.0,0.00038356,30]
[355609793,1741368638738,-500.0,0.00038356,30]
[355609794,1741368638747,-500.0,0.00038356,30]
[355609795,1741368638759,-500.0,0.00038356,30]
[355609796,1741368638768,-500.0,0.00038356,30]
[355609797,1741368638778,-500.0,0.00038356,30]
[355609798,1741368638787,-500.0,0.00038356,30]
[355609799,1741368638798,-500.0,0.00038356,30]
[355609800,1741368638808,-500.0,0.00038356,30]
[355609801,1741368638818,-500.0,0.00038356,30]
[355609802,1741368638827,-503.37312107,0.00038356,30]
[355609803,1741368638837,-500.0,0.00038356,30]
[355609804,1741368638846,-500.0,0.00038356,30]
[355609805,1741368638856,-500.0,0.00038356,30]
[355609806,1741368638867,-500.0,0.00038356,30]
[355609807,1741368638877,-699.59,0.00038356,30]
[355609808,1741368638887,-570.47,0.00038356,30]
[355609809,1741368638897,-154.80006067,0.00038356,30]
[355609810,1741368638907,-500.0,0.00038356,30]
[355609811,1741368638917,-500.0,0.00038356,30]
[355609812,1741368638927,-500.0,0.00038356,30]
[355609813,1741368638938,-500.0,0.00038356,30]
[355609814,1741368638948,-500.0,0.00038356,30]
[355609815,1741368638958,-500.0,0.00038356,30]
[355609816,1741368638968,-500.0,0.00038356,30]
[355609817,1741368638978,-500.0,0.00038356,30]
[355609818,1741368638987,-500.0,0.00038356,30]
[355609819,1741368638997,-500.0,0.00038356,30]
[355609820,1741368639006,-500.0,0.00038356,30]
[355609821,1741368639016,-516.88,0.00038356,30]
[355609822,1741368639026,-500.0,0.00038356,30]
[355609823,1741368639035,-504.10444263,0.00038356,2]
[355609824,1741368639045,-500.0,0.00038356,30]
[355609825,1741368639055,-500.0,0.00038356,30]
[355609826,1741368639064,-500.0,0.00038356,30]
[355609827,1741368639074,-500.0,0.00038356,30]
[355609828,1741368639083,-500.0,0.00038356,30]
[355609829,1741368639093,-500.0,0.00038356,30]
[355609830,1741368639103,-500.0,0.00038356,30]
[355609831,1741368639113,-594.26,0.00038356,30]
[355609832,1741368639122,-500.0,0.00038356,30]
[355609833,1741368639131,-2321.86,0.00038356,7]
[355609834,1741368639141,-500.0,0.00038356,30]
[355609835,1741368639151,-500.0,0.00038356,30]
[355609836,1741368639160,-500.0,0.00038356,30]
[355609837,1741368639169,-500.0,0.00038356,30]
[355609838,1741368639179,-500.0,0.00038356,30]
[355609839,1741368639188,-500.0,0.00038356,30]
[355609840,1741368639199,-500.0,0.00038356,30]
[355609841,1741368639208,-500.0,0.00038356,30]
[355609842,1741368639218,-300.34375399,0.00038356,30]
[355609843,1741368639227,-500.0,0.00038356,30]
[355609844,1741368639237,-500.0,0.00038356,30]
[355609845,1741368639247,-500.0,0.00038356,30]
[355609846,1741368639257,-500.0,0.00038356,30]
[355609847,1741368639268,-500.0,0.00038373,5]
[355609848,1741368639277,-172.58351857,0.00038528,2]
[355609849,1741368639287,-591.93,0.00038617,3]
[355609850,1741368639296,-5458.93680607,0.00038618,3]
[355609851,1741368639306,-5458.93680607,0.0003862,3]
[355609852,1741368639315,-500.0,0.00038627,2]
[355609853,1741368639324,-500.0,0.00038627,2]
[355609854,1741368639335,-500.0,0.00038627,2]
[355609855,1741368639344,-500.0,0.00038627,2]
[355609856,1741368639354,-500.0,0.00038627,2]
[355609857,1741368639363,-500.0,0.00038627,2]
[355609858,1741368639372,-500.0,0.00038627,2]
[355609859,1741368639382,-500.0,0.00038627,2]
[355609860,1741368639392,-500.0,0.00038627,2]
[355609861,1741368639401,-500.0,0.00038627,2]
[355609862,1741368639411,-500.0,0.00038627,2]
[355609863,1741368639420,-602.47975886,0.00038627,2]
[355609864,1741368639430,-500.0,0.00038627,2]
[355609865,1741368639440,-500.0,0.00038627,2]
[355609866,1741368639450,-500.0,0.00038627,2]
[355609867,1741368639461,-500.0,0.00038627,2]
[355609868,1741368639471,-500.0,0.00038627,2]
[355609869,1741368639480,-500.0,0.00038627,2]
[355609870,1741368639489,-500.0,0.00038627,2]
[355609871,1741368639499,-500.0,0.00038627,2]
[355609872,1741368639509,-500.0,0.00038627,2]
[355609873,1741368639518,-500.0,0.00038627,2]
[355609874,1741368639528,-500.0,0.00038627,2]
[355609875,1741368639537,-500.0,0.00038627,2]
[355609876,1741368639547,-500.0,0.00038627,2]
[355609877,1741368639557,-500.0,0.00038627,2]
[355609878,1741368639566,-500.0,0.00038627,2]
[355609879,1741368639575,-500.0,0.00038628,30]
[355609880,1741368639585,-500.0,0.00038628,30]
[355609881,1741368639595,-500.0,0.00038628,30]
[355609882,1741368639604,-611.98349918,0.00038628,30]
[355609883,1741368639614,-500.0,0.00038628,30]
[355609884,1741368639623,-500.0,0.00038628,30]
[355609885,1741368639633,-500.0,0.00038628,30]
[355609886,1741368639643,-507.26482706,0.00038628,30]
[355609887,1741368639652,-544.15,0.00038628,30]
[355609888,1741368639662,-500.0,0.00038628,30]
[355609889,1741368639676,-500.0,0.00038628,30]
[355609890,1741368639685,-514.66926624,0.00038628,30]
[355609891,1741368639695,-500.0,0.00038628,30]
[355609892,1741368639704,-500.0,0.00038628,30]
[355609893,1741368639715,-500.0,0.00038628,30]
[355609894,1741368639725,-500.0,0.00038628,30]
[355609895,1741368639735,-500.0,0.00038628,30]
[355609896,1741368639744,-500.0,0.00038628,30]
[355609897,1741368639755,-490.0,0.00038628,30]
[355609898,1741368639767,-500.0,0.00038628,30]
[355609899,1741368639781,-500.0,0.00038628,30]
[355609900,1741368639798,-500.0,0.00038628,30]
[355609901,1741368639807,-500.0,0.00038628,30]
[355609902,1741368639818,-500.0,0.00038628,30]
[355609903,1741368639829,-570.31,0.00038628,30]
[355609904,1741368639839,-500.0,0.00038628,30]
[355609905,1741368639850,-500.0,0.00038628,30]
[355609906,1741368639860,-500.0,0.00038628,30]
[355609907,1741368639884,-646.35,0.00038628,30]
[355609908,1741368639895,-151.59361317,0.00038628,30]
[355609909,1741368639906,-500.0,0.00038628,30]
[355609910,1741368639918,-500.0,0.00038628,30]
[355609911,1741368639928,-500.0,0.00038628,30]
[355609912,1741368639939,-500.0,0.00038628,30]
[355609913,1741368639949,-222.77748643,0.00038628,2]
[355609914,1741368639959,-500.0,0.00038628,30]
[355609915,1741368639968,-500.0,0.00038628,2]
[355609916,1741368639978,-506.53446393,0.00038628,30]
[355609917,1741368639988,-397.32769175,0.00038628,30]
[355609918,1741368639998,-500.0,0.00038628,30]
[355609920,1741368640009,-506.6613296,0.00038628,30]
[355609922,1741368640019,-500.0,0.00038628,30]
[355609923,1741368640028,-500.0,0.00038628,30]
[355609924,1741368640038,-500.0,0.00038628,30]
[355609925,1741368640048,-503.49276179,0.00038628,30]
[355609926,1741368640057,-500.0,0.00038628,30]
[355609927,1741368640067,-502.24618627,0.00038628,30]
[355609928,1741368640077,-500.0,0.00038628,30]
[355609929,1741368640086,-500.0,0.00038628,30]
[355609930,1741368640096,-500.0,0.00038628,30]
[355609931,1741368640106,-500.0,0.00038628,30]
[355609932,1741368640116,-500.0,0.00038628,30]
[355609933,1741368640126,-509.42983404,0.00038628,30]
[355609934,1741368640136,-500.0,0.00038628,30]
[355609935,1741368640146,-1015.17810136,0.00038628,30]
[355609936,1741368640156,-500.0,0.00038628,30]
[355609938,1741368640166,-500.0,0.00038628,30]
[355609940,1741368640175,-500.0,0.00038628,30]
[355609942,1741368640185,-500.0,0.00038628,30]
[355609944,1741368640195,-538.35,0.00038628,30]
[355609945,1741368640205,-500.0,0.00038628,30]
[355609946,1741368640215,-500.0,0.00038628,30]
[355609948,1741368640225,-500.0,0.00038629,30]
[355609949,1741368640235,-500.0,0.00038629,30]
[355609950,1741368640244,-500.0,0.00038629,30]
[355609951,1741368640254,-547.02595451,0.00038629,30]
[355609952,1741368640266,-500.0,0.00038629,30]
[355609953,1741368640276,-500.0,0.00038629,30]
[355609954,1741368640286,-500.0,0.00038629,30]
[355609955,1741368640295,-500.0,0.00038629,30]
[355609956,1741368640304,-500.0,0.00038629,30]
[355609957,1741368640314,-392.73980001,0.00038629,30]
[355609958,1741368640323,-501.2821964,0.00038629,30]
[355609960,1741368640333,-511.95087082,0.00038629,30]
[355609962,1741368640342,-508.92820882,0.00038629,30]
[355609969,1741368640485,-531.88442566,0.00038629,30]
[355609972,1741368640517,-500.0,0.00038629,30]
[355609973,1741368640527,-500.0,0.00038629,30]
[355609974,1741368640536,-500.0,0.00038629,30]
[355609975,1741368640545,-500.0,0.00038629,30]
[355609977,1741368640555,-500.0,0.00038629,30]
[355609978,1741368640565,-500.0,0.00038629,30]
[355609979,1741368640574,-500.0,0.00038629,30]
[355609980,1741368640583,-238.83264456,0.00038629,30]
[355609981,1741368640593,-500.0,0.00038629,30]
[355609982,1741368640602,-500.0,0.00038629,30]
[355609983,1741368640612,-471.28,0.0003863,30]
[355609984,1741368640622,-315.87,0.0003863,30]
[355609985,1741368640631,-165.54,0.0003863,30]
[355609986,1741368640640,-254.26,0.0003863,30]
[355609987,1741368640650,-500.0,0.0003863,30]
[355609988,1741368640659,-500.0,0.0003863,30]
[355609989,1741368640670,-500.0,0.0003863,30]
[355609990,1741368640683,-500.0,0.0003863,30]
[355609991,1741368640692,-500.0,0.0003863,30]
[355609992,1741368640701,-500.0,0.0003863,30]
[355609993,1741368640713,-500.0,0.0003863,30]
[355609994,1741368640724,-500.0,0.0003863,30]
[355609995,1741368640735,-489.52,0.0003863,30]
[355609996,1741368640745,-500.0,0.0003863,30]
[355609997,1741368640756,-500.0,0.0003863,30]
[355609998,1741368640766,-164.65,0.0003863,30]
[355609999,1741368640776,-208.29,0.0003863,30]
[355610000,1741368640785,-500.0,0.0003863,30]
[355610001,1741368640794,-699.59,0.0003863,30]
[355610002,1741368640804,-452.45,0.0003863,30]
[355610003,1741368640815,-500.0,0.0003863,30]
[355610004,1741368640824,-164.58,0.0003863,30]
[355610005,1741368640833,-500.0,0.0003863,30]
[355610006,1741368640843,-300.95,0.0003863,30]
[355610007,1741368640852,-598.4,0.0003863,30]
[355610008,1741368640862,-460.27,0.0003863,30]
[355610009,1741368640871,-500.0,0.0003863,30]
[355610010,1741368640884,-546.96,0.0003863,30]
[355610011,1741368640894,-2321.86,0.0003863,7]
[355610012,1741368640904,-500.0,0.0003863,30]
[355610013,1741368640914,-183.08,0.0003863,30]
[355610014,1741368640924,-500.0,0.0003863,30]
[355610015,1741368640934,-500.0,0.00038673,5]
[355610016,1741368640944,-500.0,0.00038673,5]
[355610017,1741368640954,-500.0,0.00038673,5]
[355610018,1741368640963,-500.0,0.00038673,2]
[355610019,1741368640973,-241.81,0.00038902,30]
[355610020,1741368640982,-326.13,0.00038902,30]
[355610021,1741368640992,-196.62,0.00038902,30]
[355610022,1741368641002,-431.89,0.00038902,30]
[355610023,1741368641013,-609.47,0.00038902,30]
[355610024,1741368641023,-572.97,0.00038902,30]
[355610025,1741368641032,-336.69,0.00038902,30]
[355610026,1741368641042,-600.93,0.00038902,30]
[355610027,1741368641052,-500.0,0.00038902,30]
[355610028,1741368641061,-479.54,0.00038903,30]
[355610029,1741368641070,-430.88,0.00038903,30]
[355610030,1741368641080,-472.59,0.00038903,30]
[355610031,1741368641089,-456.88,0.00038903,30]
[355610032,1741368641099,-500.0,0.00038904,30]
[355610033,1741368641108,-500.0,0.00038904,30]
[355610034,1741368641118,-500.0,0.00038904,30]
[355610035,1741368641127,-396.02,0.00038904,30]
[355610036,1741368641137,-649.84,0.00038904,30]
[355610037,1741368641147,-274.17,0.00038904,30]
[355610038,1741368641156,-423.06,0.00038904,30]
[355610039,1741368641166,-500.0,0.00038904,30]
[355610040,1741368641176,-500.0,0.00038904,30]
[355610041,1741368641185,-579.98,0.00038904,30]
[355610042,1741368641194,-175.21,0.00038904,30]
[355610043,1741368641203,-699.59,0.00038904,30]
[355610044,1741368641213,-500.0,0.00038904,30]
[355610045,1741368641222,-500.0,0.00038904,30]
[355610046,1741368641231,-500.0,0.00038904,30]
[355610047,1741368641240,-2321.86,0.00038904,7]
[355610048,1741368641250,-500.0,0.00038904,30]
[355610049,1741368641259,-500.0,0.00038904,30]
[355610050,1741368641268,-433.96,0.00039176,30]
[355610051,1741368641278,-500.0,0.00039178,30]
[355610052,1741368641287,-621.41,0.00039178,30]
[355610053,1741368641297,-500.0,0.00039178,30]
[355610054,1741368641306,-495.27,0.00039178,30]
[355610055,1741368641316,-500.0,0.00039178,30]
[355610056,1741368641325,-699.59,0.00039178,30]
[355610057,1741368641334,-319.45,0.00039178,30]
[355610058,1741368641344,-500.0,0.00039178,30]
[355610059,1741368641353,-275.67,0.00039178,30]
[355610060,1741368641363,-2321.86,0.00039178,7]
[355610061,1741368641372,-500.0,0.00039178,30]
[355610062,1741368641382,-376.01,0.00039178,30]
[355610063,1741368641391,-307.79,0.00039452,30]
[355610064,1741368641400,-200.49,0.00039452,30]
[355610065,1741368641410,-250.01,0.00039452,30]
[355610066,1741368641426,-699.59,0.00039452,30]
[355610067,1741368641435,-500.0,0.00039452,30]
[355610068,1741368641444,-2321.86,0.00039452,7]
[355610069,1741368641453,-500.0,0.00039452,30]
[355610070,1741368641463,-699.59,0.00039726,30]
[355610071,1741368641472,-564.88,0.00039726,30]
[355610072,1741368641482,-2321.86,0.00039726,7]
[355610073,1741368641492,-500.0,0.00039726,30]
[355610074,1741368641501,-5458.93680607,0.0003999,3]
[355610075,1741368641511,-4901.03995722,0.0004,60]
[355610076,1741368641520,-699.59,0.0004,30]
[355610077,1741368641530,-2321.86,0.0004,7]
[355610078,1741368641539,-500.0,0.0004,30]
[355610079,1741368641549,-699.59,0.00040273,30]
[355610080,1741368641559,-2321.86,0.00040273,7]
[355610081,1741368641568,-500.0,0.00040273,30]
[355610082,1741368641578,-1983.63260266,0.0004049,2]
[355610083,1741368641588,-416.66666667,0.00040542,2]
[355610084,1741368641597,-699.59,0.00040547,30]
[355610085,1741368641607,-2321.86,0.00040547,7]
[355610086,1741368641618,-500.0,0.00040547,30]
[355610087,1741368641631,-160.0,0.00040688,3]
[355610088,1741368641640,-699.59,0.00040821,30]
[355610089,1741368641649,-2321.86,0.00040821,7]
[355610090,1741368641659,-500.0,0.00040821,30]
[355610091,1741368641668,-150.00174682,0.0004092,10]
[355610092,1741368641681,-500.0,0.00041,120]
[355610093,1741368641690,-500.0,0.00041,120]
[355610094,1741368641700,-1000.0,0.00041,3]
[355610095,1741368641709,-240.0,0.00041,10]
[355610096,1741368641721,-576.16735544,0.00041095,20]
[355610097,1741368641731,-699.59,0.00041095,120]
[355610098,1741368641740,-999.0,0.00041095,120]
[355610099,1741368641751,-2321.86,0.00041095,7]
[355610100,1741368641762,-500.0,0.00041095,120]
[355610101,1741368641772,-699.59,0.00041369,120]
[355610102,1741368641781,-2321.86,0.00041369,7]